bitfinex/quotes_SOLUSD_20250112
["timestamp","ask_amount","ask_price","bid_price","bid_amount"]
[1736716516245,1.5052,188.83,188.78,8.69736345]
[1736716518029,10.20256345,188.83,188.77,8.69736345]
[1736716518331,10.20256345,188.83,188.76,8.69736345]
[1736716519055,8.69736345,188.84,188.78,8.69736345]
[1736716519556,8.69736345,188.85,188.79,8.69736345]
[1736716519867,8.69736345,188.85,188.75,30.25098]
[1736716520039,8.69736345,188.85,188.79,8.69736345]
[1736716520526,1.6433,188.87,188.82,8.69736345]
[1736716520856,10.34066345,188.87,188.81,8.69736345]
[1736716521356,1.6433,188.87,188.82,8.69736345]
[1736716522248,10.34066345,188.87,188.81,8.69736345]
[1736716522627,8.69736345,188.86,188.8,8.69736345]
[1736716524550,8.69736345,188.84,188.76,1.6129]
[1736716524733,8.69736345,188.83,188.77,8.69736345]
[1736716524938,8.69736345,188.82,188.75,8.69736345]
[1736716525138,8.69736345,188.81,188.75,8.69736345]
[1736716526053,8.69736345,188.79,188.71,8.254]
[1736716526261,8.69736345,188.78,188.72,8.69736345]
[1736716526962,8.69736345,188.79,188.72,8.69736345]
[1736716527139,8.69736345,188.79,188.73,8.69736345]
[1736716529964,8.69736345,188.77,188.71,8.69736345]
[1736716530163,8.69736345,188.75,188.69,13.17736345]
[1736716530664,8.69736345,188.73,188.67,13.17736345]
[1736716532356,8.69736345,188.74,188.68,8.69736345]
[1736716532872,8.69736345,188.73,188.67,8.69736345]
[1736716534646,8.69736345,188.72,188.66,8.69736345]
[1736716537055,8.69736345,188.73,188.66,8.69736345]
[1736716538285,8.69736345,188.73,188.67,28.69736345]
[1736716538876,8.69736345,188.74,188.68,8.69736345]
[1736716539081,8.69736345,188.75,188.69,8.69736345]
[1736716544263,8.69736345,188.74,188.69,8.69736345]
[1736716544976,8.69736345,188.74,188.68,8.69736345]
[1736716545185,8.69736345,188.73,188.68,8.69736345]
[1736716546498,8.69736345,188.69,188.61,13.2546]
[1736716546791,8.69736345,188.66,188.61,8.69736345]
[1736716546959,8.0284,188.72,188.58,12.74530141]
[1736716546960,8.69736345,188.65,188.58,8.26530141]
[1736716547163,8.69736345,188.65,188.59,8.69736345]
[1736716549298,8.69736345,188.64,188.56,4.48]
[1736716549468,8.69736345,188.63,188.57,8.69736345]
[1736716550977,1.6042,188.65,188.6,8.69736345]
[1736716551590,8.69736345,188.67,188.61,8.69736345]
[1736716551767,10.30156345,188.69,188.63,8.69736345]
[1736716552166,8.69736345,188.68,188.62,8.69736345]
[1736716552367,9.48809485,188.68,188.62,8.69736345]
[1736716552679,8.69736345,188.68,188.62,8.69736345]
[1736716553889,8.69736345,188.67,188.61,8.69736345]
[1736716554468,8.69736345,188.63,188.56,13.2578]
[1736716554778,8.69736345,188.66,188.6,8.69736345]
[1736716557798,8.69736345,188.65,188.59,8.69736345]
[1736716559100,8.69736345,188.64,188.56,13.2578]
[1736716559264,9.48809485,188.64,188.56,13.2578]
[1736716559470,9.48809485,188.64,188.58,8.69736345]
[1736716559802,8.69736345,188.62,188.56,8.69736345]
[1736716560308,8.69736345,188.6,188.55,57.3]
[1736716560599,8.69736345,188.56,188.5,13.2624]
[1736716560793,8.69736345,188.55,188.5,8.69736345]
[1736716561093,8.69736345,188.57,188.51,8.69736345]
[1736716561279,2.3688314,188.62,188.48,0.12549]
[1736716561280,8.69736345,188.56,188.48,0.12549]
[1736716561595,10.27546345,188.54,188.46,8.298862]
[1736716561897,8.69736345,188.53,188.47,8.69736345]
[1736716562101,1.5781,188.54,188.48,8.69736345]
[1736716562284,10.27546345,188.54,188.48,8.69736345]
[1736716562483,1.5781,188.54,188.49,8.69736345]
[1736716562880,33.26497885,188.53,188.44,4.52]
[1736716563088,0.7907314,188.53,188.47,8.69736345]
[1736716563283,0.7907314,188.53,188.42,57.32]
[1736716563483,8.69736345,188.47,188.42,57.32]
[1736716563686,8.69736345,188.46,188.42,57.32]
[1736716563876,9.48809485,188.48,188.42,66.01736345]
[1736716564293,8.69736345,188.45,188.42,57.32]
[1736716564473,8.69736345,188.44,188.35,30.0]
[1736716564675,8.69736345,188.45,188.39,6.19736345]
[1736716564904,8.69736345,188.43,188.36,20.0]
[1736716565082,8.69736345,188.43,188.37,8.69736345]
[1736716565283,20.7907314,188.46,188.33,4.58]
[1736716565495,8.36669,188.49,188.37,13.71250811]
[1736716565496,13.71250811,188.43,188.37,13.71250811]
[1736716565798,13.71250811,188.43,188.33,4.58]
[1736716565799,13.71250811,188.41,188.35,13.71250811]
[1736716565988,13.83799811,188.46,188.34,33.71250811]
[1736716565989,13.71250811,188.4,188.34,33.71250811]
[1736716566184,13.71250811,188.4,188.34,13.71250811]
[1736716566971,13.71250811,188.41,188.35,13.71250811]
[1736716567170,13.71250811,188.45,188.4,13.71250811]
[1736716567373,13.71250811,188.47,188.41,13.71250811]
[1736716567605,14.50323951,188.46,188.4,13.71250811]
[1736716567796,13.71250811,188.43,188.38,13.71250811]
[1736716568100,13.71250811,188.43,188.37,13.71250811]
[1736716568297,13.71250811,188.42,188.36,13.71250811]
[1736716568477,13.71250811,188.43,188.37,13.71250811]
[1736716569176,14.50323951,188.44,188.38,13.71250811]
[1736716569814,13.71250811,188.45,188.39,13.71250811]
[1736716570304,13.71250811,188.45,188.4,13.71250811]
[1736716570981,13.71250811,188.45,188.39,13.71250811]
[1736716571784,14.50323951,188.47,188.41,13.71250811]
[1736716572108,21.95370811,188.49,188.43,13.71250811]
[1736716572403,8.2412,188.49,188.44,13.71250811]
[1736716572715,8.2412,188.49,188.46,13.71250811]
[1736716572914,8.2412,188.49,188.45,13.71250811]
[1736716573273,8.2412,188.49,188.44,13.71250811]
[1736716573498,14.50323951,188.48,188.42,13.71250811]
[1736716573818,13.71250811,188.46,188.41,13.71250811]
[1736716574117,14.50323951,188.45,188.39,13.71250811]
[1736716574807,13.71250811,188.44,188.38,13.71250811]
[1736716576707,13.71250811,188.46,188.4,13.71250811]
[1736716577293,23.776884,188.48,188.43,13.71250811]
[1736716578181,38.28012351,188.48,188.42,13.71250811]
[1736716578987,21.95370811,188.49,188.43,13.71250811]
[1736716579385,23.776884,188.48,188.42,13.71250811]
[1736716579593,38.28012351,188.48,188.42,13.71250811]
[1736716579806,37.48939211,188.48,188.42,13.71250811]
[1736716580107,37.48939211,188.48,188.41,13.71250811]
[1736716580484,37.48939211,188.48,188.42,13.71250811]
[1736716581884,0.12549,188.47,188.43,13.71250811]
[1736716582214,1.5781,188.49,188.45,13.71250811]
[1736716582387,1.5781,188.49,188.44,13.71250811]
[1736716584007,23.902374,188.48,188.43,13.71250811]
[1736716584209,37.61488211,188.48,188.41,13.71250811]
[1736716584710,37.61488211,188.46,188.4,13.71250811]
[1736716588316,23.902374,188.44,188.39,13.71250811]
[1736716589022,0.12549,188.44,188.4,13.71250811]
[1736716589947,0.12549,188.44,188.39,13.71250811]
[1736716590317,23.902374,188.42,188.36,13.71250811]
[1736716590829,37.61488211,188.42,188.36,13.71250811]
[1736716591145,0.37647,188.41,188.31,31.6413]
[1736716591320,37.61488211,188.39,188.33,13.71250811]
[1736716591508,37.61488211,188.39,188.32,13.2751]
[1736716592139,37.61488211,188.39,188.33,13.71250811]
[1736716592333,37.61488211,188.39,188.32,13.71250811]
[1736716592334,23.902374,188.37,188.32,13.71250811]
[1736716592634,0.12549,188.34,188.26,52.90314511]
[1736716592831,0.12549,188.33,188.28,13.71250811]
[1736716593033,13.71250811,188.29,188.19,30.0]
[1736716593207,13.71250811,188.27,188.18,30.0]
[1736716593531,13.71250811,188.27,188.2,13.71250811]
[1736716593834,19.76800811,188.27,188.2,13.71250811]
[1736716594027,13.83799811,188.26,188.15,38.298862]
[1736716594230,14.62872951,188.26,188.19,13.71250811]
[1736716594426,13.71250811,188.23,188.13,20.0]
[1736716594624,14.50323951,188.22,188.15,13.71250811]
[1736716594825,13.71250811,188.21,188.11,30.0]
[1736716595027,0.12549,188.18,188.09,43.2913]
[1736716595229,0.12549,188.18,188.12,20.0]
[1736716595423,0.12549,188.16,188.12,20.0]
[1736716595731,0.12549,188.22,188.12,20.0]
[1736716595920,0.7907314,188.23,188.17,13.71250811]
[1736716596116,0.7907314,188.23,188.2,13.71250811]
[1736716596320,1.6271,188.25,188.1,13.71250811]
[1736716596321,0.7907314,188.24,188.22,13.71250811]
[1736716596518,2.4178314,188.25,188.23,13.71250811]
[1736716596723,2.4178314,188.25,188.24,13.71250811]
[1736716596724,1.6271,188.25,188.24,13.71250811]
[1736716596925,0.12549,188.24,188.23,13.71250811]
[1736716597233,0.25098,188.24,188.22,13.71250811]
[1736716597442,0.25098,188.24,188.21,13.71250811]
[1736716597612,1.0417114,188.24,188.21,13.71250811]
[1736716597941,0.12549,188.22,188.18,13.71250811]
[1736716598111,0.12549,188.21,188.18,13.71250811]
[1736716598541,0.12549,188.21,188.19,13.71250811]
[1736716598918,0.12549,188.21,188.2,13.71250811]
[1736716599115,1.6271,188.25,188.2,13.71250811]
[1736716599317,1.6271,188.25,188.23,13.71250811]
[1736716599734,0.12549,188.24,188.23,13.71250811]
[1736716600241,1.6271,188.25,188.23,13.71250811]
[1736716600433,1.75259,188.25,188.24,13.71250811]
[1736716600615,1.6271,188.25,188.23,13.71250811]
[1736716600816,1.6271,188.25,188.22,13.71250811]
[1736716601227,0.9162214,188.24,188.2,13.71250811]
[1736716601622,0.9162214,188.24,188.19,13.71250811]
[1736716601835,0.9162214,188.24,188.2,13.71250811]
[1736716603020,0.9162214,188.24,188.15,13.2867]
[1736716603220,0.9162214,188.24,188.19,13.71250811]
[1736716603437,0.9162214,188.24,188.18,13.71250811]
[1736716603938,0.9162214,188.24,188.2,13.71250811]
[1736716604519,0.12549,188.23,188.2,13.71250811]
[1736716605029,0.12549,188.22,188.2,13.71250811]
[1736716605342,0.7907314,188.23,188.2,13.71250811]
[1736716605542,1.6271,188.25,188.22,13.71250811]
[1736716605744,0.12549,188.24,188.23,13.71250811]
[1736716606042,0.12549,188.24,188.22,13.71250811]
[1736716606543,0.12549,188.24,188.21,13.71250811]
[1736716607241,0.25098,188.24,188.2,13.71250811]
[1736716607538,0.7907314,188.23,188.19,13.71250811]
[1736716607841,1.0417114,188.24,188.2,13.71250811]
[1736716609042,0.12549,188.24,188.21,13.71250811]
[1736716609259,1.6271,188.25,188.22,13.71250811]
[1736716609462,1.6271,188.25,188.23,13.71250811]
[1736716610128,1.6271,188.25,188.22,13.71250811]
[1736716611033,1.6271,188.25,188.21,13.71250811]
[1736716611541,1.6271,188.25,188.22,13.71250811]
[1736716611743,6.0555,188.27,188.22,13.71250811]
[1736716611952,6.0555,188.27,188.24,13.71250811]
[1736716612254,1.0417114,188.26,188.21,13.71250811]
[1736716613532,1.0417114,188.26,188.22,13.71250811]
[1736716613533,0.12549,188.26,188.22,13.71250811]
[1736716614535,0.12549,188.26,188.21,13.71250811]
[1736716614848,0.7907314,188.25,188.21,13.71250811]
[1736716615343,1.0417114,188.26,188.21,13.71250811]
[1736716615531,0.9162214,188.26,188.21,13.71250811]
[1736716616653,6.18099,188.27,188.23,13.71250811]
[1736716616654,6.0555,188.27,188.23,13.71250811]
[1736716616943,0.7907314,188.29,188.25,13.71250811]
[1736716617144,0.12549,188.28,188.24,13.71250811]
[1736716617534,0.12549,188.28,188.25,13.71250811]
[1736716617939,0.7907314,188.29,188.25,13.71250811]
[1736716618148,2.3412314,188.3,188.25,13.71250811]
[1736716618532,2.3412314,188.3,188.24,13.71250811]
[1736716618721,1.5505,188.3,188.27,13.71250811]
[1736716619140,0.12549,188.31,188.27,13.71250811]
[1736716619334,0.12549,188.31,188.26,13.71250811]
[1736716620852,0.12549,188.31,188.27,13.71250811]
[1736716621051,13.71250811,188.34,188.27,13.71250811]
[1736716621253,0.7907314,188.33,188.28,13.71250811]
[1736716621433,0.7907314,188.34,188.29,13.71250811]
[1736716621754,0.12549,188.33,188.28,13.71250811]
[1736716621926,0.12549,188.33,188.27,13.71250811]
[1736716622130,13.83799811,188.33,188.27,13.71250811]
[1736716622856,0.12549,188.33,188.27,13.71250811]
[1736716623060,13.71250811,188.31,188.24,13.71250811]
[1736716623239,13.71250811,188.3,188.23,13.71250811]
[1736716623436,14.50323951,188.29,188.23,13.71250811]
[1736716623941,13.71250811,188.3,188.24,13.71250811]
[1736716624139,14.75421951,188.32,188.26,13.71250811]
[1736716624334,14.50323951,188.34,188.28,13.71250811]
[1736716624530,0.7907314,188.34,188.29,13.71250811]
[1736716624736,7.7995,188.35,188.29,13.71250811]
[1736716624962,13.71250811,188.33,188.26,13.71250811]
[1736716625136,14.50323951,188.32,188.26,13.71250811]
[1736716625344,0.12549,188.33,188.28,13.71250811]
[1736716626746,13.71250811,188.31,188.24,13.71250811]
[1736716626954,14.50323951,188.3,188.23,13.71250811]
[1736716627559,14.50323951,188.3,188.22,13.71250811]
[1736716627560,0.12549,188.28,188.22,13.71250811]
[1736716627740,0.12549,188.28,188.21,13.71250811]
[1736716627741,13.83799811,188.27,188.21,13.71250811]
[1736716628347,0.12549,188.27,188.22,13.71250811]
[1736716630060,0.12549,188.27,188.23,13.71250811]
[1736716632046,0.7907314,188.28,188.23,13.71250811]
[1736716633062,0.12549,188.27,188.22,13.71250811]
[1736716633263,13.83799811,188.25,188.19,13.71250811]
[1736716633473,0.7907314,188.24,188.19,13.71250811]
[1736716633838,14.62872951,188.25,188.2,13.71250811]
[1736716634044,0.9162214,188.25,188.21,13.71250811]
[1736716635037,0.12549,188.25,188.21,13.71250811]
[1736716635237,0.12549,188.25,188.22,13.71250811]
[1736716635465,2.3026314,188.26,188.23,13.71250811]
[1736716635772,6.0045,188.29,188.25,13.71250811]
[1736716635967,0.7907314,188.28,188.25,13.71250811]
[1736716636139,0.12549,188.27,188.24,13.71250811]
[1736716636344,0.12549,188.27,188.23,13.71250811]
[1736716636573,0.12549,188.27,188.22,13.71250811]
[1736716636968,14.08897811,188.27,188.21,13.71250811]
[1736716637270,0.12549,188.22,188.17,13.71250811]
[1736716637440,0.9162214,188.22,188.17,13.71250811]
[1736716637861,0.9162214,188.22,188.18,13.71250811]
[1736716638066,2.3026314,188.23,188.19,13.71250811]
[1736716638446,1.5119,188.23,188.19,13.71250811]
[1736716638771,1.5119,188.23,188.2,13.71250811]
[1736716639355,1.5119,188.23,188.19,13.71250811]
[1736716640356,0.9162214,188.25,188.21,13.71250811]
[1736716640563,0.9162214,188.25,188.2,13.71250811]
[1736716641775,0.9162214,188.25,188.22,13.71250811]
[1736716642160,0.9162214,188.25,188.21,13.71250811]
[1736716644764,0.9162214,188.25,188.22,13.71250811]
[1736716645061,0.9162214,188.25,188.2,13.71250811]
[1736716645647,0.9162214,188.25,188.21,13.71250811]
[1736716647878,0.9162214,188.25,188.22,13.71250811]
[1736716648389,0.9162214,188.25,188.21,13.71250811]
[1736716649571,0.9162214,188.25,188.2,13.71250811]
[1736716650492,0.9162214,188.25,188.21,13.71250811]
[1736716650696,0.12549,188.25,188.22,13.71250811]
[1736716651207,0.12549,188.25,188.23,13.71250811]
[1736716651566,0.12549,188.25,188.22,13.71250811]
[1736716652389,0.7907314,188.26,188.22,13.71250811]
[1736716655394,0.7907314,188.26,188.22,8.78935656]
[1736716656268,0.7907314,188.26,188.21,8.78935656]
[1736716656784,0.37647,188.25,188.16,13.2861]
[1736716656964,9.16582656,188.23,188.17,8.78935656]
[1736716657268,9.16582656,188.21,188.12,21.587562]
[1736716657471,0.12549,188.19,188.14,8.78935656]
[1736716658097,0.12549,188.19,188.15,8.78935656]
[1736716658270,0.12549,188.16,188.08,8.298862]
[1736716658592,0.7907314,188.16,188.13,8.78935656]
[1736716659384,0.7907314,188.16,188.13,13.74698099]
[1736716659590,0.12549,188.15,188.12,13.74698099]
[1736716660296,0.12549,188.15,188.06,13.2935]
[1736716660498,0.12549,188.15,188.1,13.74698099]
[1736716660801,0.12549,188.15,188.11,13.74698099]
[1736716661278,0.12549,188.15,188.12,13.74698099]
[1736716661468,0.12549,188.16,188.13,13.74698099]
[1736716661675,21.5619,188.18,188.15,13.74698099]
[1736716661880,0.9162214,188.17,188.15,13.74698099]
[1736716662974,0.12549,188.17,188.15,13.74698099]
[1736716663387,0.12549,188.17,188.16,13.74698099]
[1736716664097,2.3526314,188.18,188.16,13.74698099]
[1736716664271,1.5619,188.18,188.16,13.74698099]
[1736716664775,0.7907314,188.17,188.16,13.24698099]
[1736716664976,0.7907314,188.17,188.15,13.74698099]
[1736716665307,1.5619,188.18,188.16,13.74698099]
[1736716665482,0.7907314,188.17,188.15,13.74698099]
[1736716665791,1.68739,188.18,188.15,13.74698099]
[1736716666501,0.7907314,188.19,188.17,13.74698099]
[1736716666699,2.3389314,188.22,188.18,13.74698099]
[1736716666899,0.7907314,188.25,188.21,13.74698099]
[1736716667101,0.37647,188.24,188.22,13.74698099]
[1736716667303,0.37647,188.24,188.21,13.74698099]
[1736716668002,0.37647,188.24,188.21,13.24698099]
[1736716668196,0.37647,188.24,188.22,13.74698099]
[1736716668697,0.7907314,188.25,188.14,14.857]
[1736716668897,0.7907314,188.25,188.2,13.74698099]
[1736716669098,0.12549,188.24,188.21,13.74698099]
[1736716670603,0.12549,188.24,188.22,13.74698099]
[1736716670783,0.12549,188.24,188.21,13.74698099]
[1736716670983,0.37647,188.24,188.2,13.74698099]
[1736716673279,0.12549,188.22,188.18,13.74698099]
[1736716673483,0.9162214,188.22,188.19,13.74698099]
[1736716674189,0.9162214,188.22,188.12,4.7]
[1736716674190,0.12549,188.2,188.18,13.74698099]
[1736716674389,0.9162214,188.2,188.18,13.74698099]
[1736716675703,0.12549,188.2,188.18,13.74698099]
[1736716675910,0.12549,188.2,188.17,13.74698099]
[1736716678410,0.12549,188.2,188.16,13.74698099]
[1736716678607,0.12549,188.2,188.17,13.74698099]
[1736716678808,20.37878099,188.26,188.19,13.74698099]
[1736716679014,24.153354,188.24,188.19,13.74698099]
[1736716679199,0.25098,188.22,188.17,13.74698099]
[1736716679395,0.25098,188.22,188.18,8.79345915]
[1736716679814,0.7907314,188.23,188.2,8.79345915]
[1736716680035,0.7907314,188.25,188.2,8.79345915]
[1736716680536,0.37647,188.24,188.2,8.79345915]
[1736716680688,0.7907314,188.25,188.21,8.79345915]
[1736716681000,0.7907314,188.25,188.22,8.79345915]
[1736716682411,0.7907314,188.25,188.23,8.79345915]
[1736716682587,0.7907314,188.25,188.22,8.79345915]
[1736716682791,0.9162214,188.26,188.23,8.79345915]
[1736716683608,1.6043,188.31,188.25,8.79345915]
[1736716683811,0.7907314,188.34,188.29,8.79345915]
[1736716684023,0.7907314,188.34,188.3,8.79345915]
[1736716684511,0.7907314,188.34,188.22,4.7]
[1736716684512,24.278844,188.33,188.22,4.7]
[1736716684716,0.12549,188.31,188.26,8.79345915]
[1736716685297,0.12549,188.31,188.26,13.7277674]
[1736716685618,0.12549,188.31,188.25,13.7277674]
[1736716685991,0.12549,188.31,188.26,13.7277674]
[1736716686215,0.12549,188.31,188.27,13.7277674]
[1736716686514,0.7907314,188.32,188.28,13.7277674]
[1736716686713,0.7907314,188.34,188.29,13.7277674]
[1736716687199,0.25098,188.33,188.29,13.7277674]
[1736716688192,0.12549,188.33,188.3,13.7277674]
[1736716688396,0.12549,188.33,188.24,13.2803]
[1736716688397,0.12549,188.33,188.31,13.7277674]
[1736716688594,0.9162214,188.35,188.32,13.7277674]
[1736716688804,0.12549,188.35,188.33,13.7277674]
[1736716689017,20.0,188.36,188.34,13.7277674]
[1736716689313,0.7907314,188.38,188.35,13.7277674]
[1736716689314,0.12549,188.37,188.35,13.7277674]
[1736716689497,0.7907314,188.38,188.36,13.7277674]
[1736716689925,0.7907314,188.38,188.35,13.7277674]
[1736716690442,0.12549,188.38,188.35,13.7277674]
[1736716690636,0.7907314,188.4,188.37,13.7277674]
[1736716690844,20.0,188.41,188.38,13.7277674]
[1736716691004,0.7907314,188.4,188.38,13.7277674]
[1736716691333,0.25098,188.39,188.34,13.7277674]
[1736716692044,0.7907314,188.4,188.35,13.7277674]
[1736716692213,0.7907314,188.4,188.29,43.2772]
[1736716692214,0.7907314,188.4,188.36,13.7277674]
[1736716693002,6.4988,188.44,188.39,13.7277674]
[1736716693197,0.7907314,188.43,188.39,13.7277674]
[1736716693403,0.12549,188.42,188.39,13.7277674]
[1736716693607,0.12549,188.42,188.38,13.7277674]
[1736716693818,0.12549,188.42,188.37,13.7277674]
[1736716695618,0.7907314,188.43,188.39,13.7277674]
[1736716695797,0.7907314,188.44,188.4,13.7277674]
[1736716697311,13.7277674,188.47,188.41,13.7277674]
[1736716697510,14.5184988,188.46,188.4,13.7277674]
[1736716698017,13.8532574,188.45,188.34,4.72]
[1736716698207,13.8532574,188.43,188.37,13.7277674]
[1736716698530,13.8532574,188.43,188.35,13.7277674]
[1736716698531,0.12549,188.4,188.35,13.7277674]
[1736716698842,0.12549,188.4,188.32,13.7277674]
[1736716698843,13.7277674,188.38,188.32,13.7277674]
[1736716699339,0.7907314,188.37,188.32,13.7277674]
[1736716699545,13.7277674,188.36,188.3,13.7277674]
[1736716699731,13.7277674,188.36,188.28,12.3576]
[1736716699732,13.7277674,188.35,188.29,13.7277674]
[1736716700046,14.6439888,188.39,188.33,13.7277674]
[1736716700246,0.7907314,188.39,188.34,13.7277674]
[1736716700557,14.6439888,188.4,188.34,13.7277674]
[1736716700720,0.12549,188.39,188.34,13.7277674]
[1736716702346,14.5184988,188.4,188.34,13.7277674]
[1736716702648,13.7277674,188.44,188.38,13.7277674]
[1736716702823,14.5184988,188.43,188.37,13.7277674]
[1736716703952,0.7907314,188.43,188.38,13.7277674]
[1736716706743,20.0,188.41,188.38,13.7277674]
[1736716707124,0.12549,188.42,188.38,13.7277674]
[1736716707325,20.0,188.41,188.38,13.7277674]
[1736716708665,20.0,188.42,188.39,13.7277674]
[1736716711246,15.3767674,188.46,188.4,13.7277674]
[1736716711543,0.7907314,188.45,188.4,13.7277674]
[1736716711953,20.0,188.43,188.4,13.7277674]
[1736716712735,33.9787474,188.44,188.38,13.7277674]
[1736716716253,20.25098,188.44,188.39,13.7277674]
[1736716716452,34.7694788,188.44,188.38,13.7277674]
[1736716716834,33.9787474,188.44,188.38,13.7277674]
[1736716717466,29.02568607,188.44,188.38,8.77470607]
[1736716717769,0.12549,188.4,188.35,8.77470607]
[1736716718858,0.12549,188.44,188.38,8.77470607]
[1736716718859,20.0,188.44,188.38,8.77470607]
[1736716719058,0.7907314,188.45,188.4,8.77470607]
[1736716719446,20.0,188.43,188.39,13.70802026]
[1736716722053,34.62424166,188.44,188.37,13.70802026]
[1736716722250,0.12549,188.42,188.37,13.70802026]
[1736716725076,0.12549,188.42,188.38,13.70802026]
[1736716725746,20.12549,188.42,188.39,13.70802026]
[1736716726281,20.0,188.42,188.39,13.70802026]
[1736716726459,13.70802026,188.48,188.41,13.70802026]
[1736716726660,20.0,188.45,188.43,13.70802026]
[1736716727284,0.25098,188.47,188.43,13.70802026]
[1736716727285,20.0,188.46,188.43,13.70802026]
[1736716727579,20.0,188.45,188.42,13.70802026]
[1736716729699,0.12549,188.47,188.43,13.70802026]
[1736716729860,0.7907314,188.49,188.44,13.70802026]
[1736716730381,20.0,188.47,188.43,13.70802026]
[1736716730685,0.25098,188.46,188.41,13.70802026]
[1736716731169,13.70802026,188.43,188.37,18.38802026]
[1736716731554,13.83351026,188.44,188.38,13.70802026]
[1736716731783,0.12549,188.44,188.39,13.70802026]
[1736716731985,0.12549,188.44,188.4,13.70802026]
[1736716737672,13.70802026,188.49,188.43,13.70802026]
[1736716737903,0.7907314,188.48,188.43,13.70802026]
[1736716738305,20.0,188.45,188.42,13.70802026]
[1736716738487,20.12549,188.45,188.42,13.70802026]
[1736716739823,20.0,188.45,188.42,8.77170395]
[1736716740410,9.14817395,188.47,188.41,8.77170395]
[1736716741505,0.12549,188.45,188.41,8.77170395]
[1736716743902,8.89719395,188.49,188.43,8.77170395]
[1736716744088,0.7907314,188.48,188.43,8.77170395]
[1736716744285,8.77170395,188.5,188.44,8.77170395]
[1736716744588,0.7907314,188.49,188.44,8.77170395]
[1736716744994,20.0,188.47,188.44,8.77170395]
[1736716745175,0.25098,188.48,188.44,8.77170395]
[1736716745372,0.7907314,188.53,188.47,8.77170395]
[1736716745579,0.7907314,188.53,188.49,8.77170395]
[1736716745807,0.7907314,188.54,188.49,8.77170395]
[1736716745992,20.12549,188.51,188.48,8.77170395]
[1736716746877,1.5366,188.55,188.5,8.77170395]
[1736716747101,1.5366,188.55,188.51,8.77170395]
[1736716747384,20.12549,188.54,188.51,8.77170395]
[1736716747626,20.12549,188.54,188.46,35.0868158]
[1736716747627,20.12549,188.54,188.5,8.77170395]
[1736716747906,0.12549,188.54,188.5,8.77170395]
[1736716748108,0.12549,188.54,188.49,8.77170395]
[1736716748679,0.12549,188.52,188.47,8.77170395]
[1736716748884,9.68792535,188.52,188.46,8.77170395]
[1736716749209,0.12549,188.46,188.41,8.77170395]
[1736716749404,8.77170395,188.46,188.4,8.77170395]
[1736716749777,0.12549,188.45,188.4,8.77170395]
[1736716750405,8.77170395,188.45,188.39,8.77170395]
[1736716750594,8.89719395,188.46,188.4,8.77170395]
[1736716751418,0.25098,188.46,188.4,8.77170395]
[1736716751607,1.0417114,188.46,188.4,8.77170395]
[1736716752415,9.81341535,188.46,188.4,8.77170395]
[1736716752893,9.02268395,188.46,188.4,8.77170395]
[1736716753318,0.25098,188.46,188.36,37.048784]
[1736716753515,13.95920144,188.46,188.4,13.70822144]
[1736716755315,0.12549,188.45,188.4,13.70822144]
[1736716755519,0.12549,188.43,188.38,13.70822144]
[1736716755823,0.12549,188.43,188.39,13.70822144]
[1736716756828,13.70822144,188.47,188.41,13.70822144]
[1736716757123,0.25098,188.46,188.41,13.70822144]
[1736716757422,0.25098,188.46,188.4,13.70822144]
[1736716759229,13.70822144,188.42,188.35,1.5551]
[1736716759540,13.70822144,188.42,188.36,13.70822144]
[1736716760322,13.83371144,188.43,188.37,13.70822144]
[1736716761027,0.12549,188.43,188.38,13.70822144]
[1736716761200,13.70822144,188.48,188.42,13.70822144]
[1736716761399,20.0,188.45,188.42,13.70822144]
[1736716763421,1.0417114,188.47,188.42,13.70822144]
[1736716763624,1.0417114,188.47,188.43,13.70822144]
[1736716763625,0.12549,188.47,188.43,13.70822144]
[1736716764319,20.12549,188.47,188.44,13.70822144]
[1736716764712,20.12549,188.47,188.43,13.70822144]
[1736716765923,20.12549,188.47,188.42,13.70822144]
[1736716769314,20.12549,188.47,188.43,13.70822144]
[1736716772235,1.5505,188.49,188.45,13.70822144]
[1736716772526,0.12549,188.48,188.45,13.70822144]
[1736716775334,0.12549,188.48,188.45,8.7691584]
[1736716776317,1.5505,188.49,188.46,8.7691584]
[1736716776546,2.3405314,188.54,188.48,8.7691584]
[1736716776714,2.3405314,188.54,188.5,8.7691584]
[1736716777041,0.7907314,188.57,188.51,8.7691584]
[1736716777212,0.12549,188.56,188.52,8.7691584]
[1736716777617,0.37647,188.56,188.51,8.7691584]
[1736716777817,0.25098,188.56,188.51,8.7691584]
[1736716778339,29.8108698,188.56,188.5,8.7691584]
[1736716782046,29.0201384,188.56,188.5,8.7691584]
[1736716782345,20.25098,188.56,188.51,8.7691584]
[1736716782721,20.25098,188.56,188.52,8.7691584]